[Event "Eurasia Open Cup 2019"]
[Site "Ekaterinburg"]
[Date "2019.08.07"]
[Round "7.20"]
[White "Davtyan, Artur"]
[Black "Polosin, Evgeni"]
[Result "1-0"]
[ECO "D20"]
[WhiteElo "2440"]
[BlackElo "2153"]
[Annotator "NA"]
[PlyCount "69"]
[EventDate "2019.07.31"]
[EventType "swiss"]
[EventCountry "RUS"]
[SourceTitle "playchess.com"]
[Source "ChessBase"]
[SourceQuality "1"]
[TimeControl "5400+30"]

1. d4 {[%emt 0:00:00]} d5 {[%emt 0:02:19]} 2. c4 {[%emt 0:00:00]} dxc4 {[%emt 0:00:31]} 3. e4 {[%emt 0:02:55]} Nf6 {[%emt 0:02:00]} 4. Nc3 {[%emt 0:01:50]} e5 {[%emt 0:03:32]} 5. d5 {[%emt 0:14:44]} Bc5 {[%emt 0:05:56]} 6. Bxc4 {[%emt 0:07:24]} O-O {[%emt 0:03:04]} 7. Nf3 {[%emt 0:00:53]} Re8 {[%emt 0:00:28]} 8. Qb3 {[%emt 0:08:20]} Bd6 {[%emt 0:07:19]} 9. O-O {[%emt 0:00:02]} Nbd7 {[%emt 0:02:12]} 10. Be3 {[%emt 0:01:52]} h6 {[%emt 0:04:47]} 11. h3 {[%emt 0:04:03]} Nf8 {[%emt 0:00:11]} 12. Rfc1 {[%emt 0:04:04]} g5 {[%emt 0:06:49]} 13. Nd2 {[%emt 0:15:00]} Ng6 {[%emt 0:06:40]} 14. Nb5 {[%emt 0:00:08]} Kh7 {[%emt 0:04:30]} 15. Bf1 {[%emt 0:07:38]} g4 {[%emt 0:07:38]} 16. Nxc7 {[%emt 0:03:00]} Bxc7 {[%emt 0:08:26]} 17. d6 {[%emt 0:00:05]} Bxd6 {[%emt 0:10:37]} 18. Qxf7+ {[%emt 0:00:08]} Kh8 {[%emt 0:00:03]} 19. Qxg6 {[%emt 0:01:03]} gxh3 {[%emt 0:04:46]} 20. Qxh6+ {[%emt 0:05:16]} Nh7 {[%emt 0:00:07]} 21. g3 {[%emt 0:02:46]} Rg8 {[%emt 0:00:11]} 22. Bxh3 {[%emt 0:04:10]} Bxh3 {[%emt 0:03:09]} 23. Qxh3 {[%emt 0:01:38]} Qf6 {[%emt 0:00:00]} 24. Kg2 {[%emt 0:00:18]} Rg7 {[%emt 0:00:00]} 25. Rc8+ {[%emt 0:00:21]} Rxc8 {[%emt 0:00:11]} 26. Qxc8+ {[%emt 0:00:02]} Nf8 {[%emt 0:00:09]} 27. Rh1+ {[%emt 0:00:04]} Kg8 {[%emt 0:01:11]} 28. Rh6 {[%emt 0:00:08]} Qe7 {[%emt 0:00:00]} 29. Nc4 {[%emt 0:00:31]} Bc7 {[%emt 0:01:34]} 30. Qxb7 {[%emt 0:00:23]} Ng6 {[%emt 0:00:00]} 31. Qd5+ {[%emt 0:00:01]} Qf7 {[%emt 0:00:41]} 32. Qxf7+ {[%emt 0:00:32]} Kxf7 {[%emt 0:00:05]} 33. Bxa7 {[%emt 0:00:17]} Nf4+ {[%emt 0:00:45]} 34. Kf3 {[%emt 0:00:27]} Ne6 {[%emt 0:00:06]} 35. Be3 {[%emt 0:00:26]} 1-0

[Event "Eurasia Open Cup 2019"]
[Site "Ekaterinburg"]
[Date "2019.08.07"]
[Round "7.21"]
[White "Zasukhin, Vadim"]
[Black "Bivol, Alina"]
[Result "1-0"]
[ECO "E61"]
[WhiteElo "2249"]
[BlackElo "2391"]
[Annotator "NA"]
[PlyCount "105"]
[EventDate "2019.07.31"]
[EventType "swiss"]
[EventCountry "RUS"]
[SourceTitle "playchess.com"]
[Source "ChessBase"]
[SourceQuality "1"]
[TimeControl "5400+30"]

1. d4 {[%emt 0:00:00]} Nf6 {[%emt 0:04:21]} 2. c4 {[%emt 0:00:00]} g6 {[%emt 0:00:00]} 3. Nc3 {[%emt 0:00:15]} Bg7 {[%emt 0:00:15]} 4. Nf3 {[%emt 0:00:00]} d6 {[%emt 0:00:00]} 5. Bg5 {[%emt 0:00:00]} O-O {[%emt 0:01:00]} 6. e3 {[%emt 0:00:00]} Nbd7 {[%emt 0:06:06]} 7. Be2 {[%emt 0:00:57]} c5 {[%emt 0:01:10]} 8. d5 {[%emt 0:00:06]} a6 {[%emt 0:02:00]} 9. a4 {[%emt 0:01:36]} h6 {[%emt 0:00:59]} 10. Bh4 {[%emt 0:00:00]} Qa5 {[%emt 0:00:17]} 11. O-O {[%emt 0:04:18]} g5 {[%emt 0:02:24]} 12. Bg3 {[%emt 0:00:06]} Nh5 {[%emt 0:04:13]} 13. Qc2 {[%emt 0:00:51]} Nxg3 {[%emt 0:03:28]} 14. hxg3 {[%emt 0:00:02]} f5 {[%emt 0:07:15]} 15. Nd2 {[%emt 0:02:15]} Qd8 {[%emt 0:02:52]} 16. f4 {[%emt 0:00:53]} gxf4 {[%emt 0:01:02]} 17. gxf4 {[%emt 0:00:47]} Nf6 {[%emt 0:00:33]} 18. g3 {[%emt 0:04:41]} Qe8 {[%emt 0:01:15]} 19. Kg2 {[%emt 0:03:40]} Bd7 {[%emt 0:02:01]} 20. Bf3 {[%emt 0:03:17]} Qg6 {[%emt 0:01:14]} 21. Qd1 {[%emt 0:02:09]} Rae8 {[%emt 0:01:50]} 22. Re1 {[%emt 0:10:10]} Ng4 {[%emt 0:04:19]} 23. Bxg4 {[%emt 0:02:20]} Qxg4 {[%emt 0:00:49]} 24. Qxg4 {[%emt 0:06:24]} fxg4 {[%emt 0:00:55]} 25. Nde4 {[%emt 0:01:41]} Rb8 {[%emt 0:00:40]} 26. Re2 {[%emt 0:03:11]} Rfd8 {[%emt 0:01:15]} 27. Nf2 {[%emt 0:05:52]} e5 {[%emt 0:01:46]} 28. e4 {[%emt 0:02:24]} Kf7 {[%emt 0:08:38]} 29. Nd3 {[%emt 0:00:49]} exf4 {[%emt 0:07:03]} 30. gxf4 {[%emt 0:00:03]} Bd4 {[%emt 0:00:44]} 31. e5 {[%emt 0:03:00]} Bf5 {[%emt 0:00:07]} 32. Ne4 {[%emt 0:00:36]} Kg7 {[%emt 0:01:52]} 33. Rd1 {[%emt 0:02:26]} dxe5 {[%emt 0:00:56]} 34. fxe5 {[%emt 0:00:00]} b5 {[%emt 0:01:34]} 35. axb5 {[%emt 0:08:54]} axb5 {[%emt 0:00:02]} 36. b3 {[%emt 0:00:07]} bxc4 {[%emt 0:05:10]} 37. bxc4 {[%emt 0:02:24]} h5 {[%emt 0:00:39]} 38. e6 {[%emt 0:00:41]} Rh8 {[%emt 0:02:53]} 39. Ndxc5 {[%emt 0:05:02]} Bxc5 {[%emt 0:00:21]} 40. Nxc5 {[%emt 0:00:00]} Rbc8 {[%emt 0:01:00]} 41. Ne4 {[%emt 0:00:08]} Ra8 {[%emt 0:04:51]} 42. Nd6 {[%emt 0:03:34]} Bg6 {[%emt 0:00:00]} 43. e7 {[%emt 0:00:07]} h4 {[%emt 0:00:21]} 44. e8=Q {[%emt 0:05:50]} Bxe8 {[%emt 0:00:19]} 45. Nxe8+ {[%emt 0:00:01]} Rhxe8 {[%emt 0:01:02]} 46. Rxe8 {[%emt 0:00:02]} Rxe8 {[%emt 0:00:05]} 47. d6 {[%emt 0:00:14]} h3+ {[%emt 0:00:52]} 48. Kg1 {[%emt 0:02:07]} Kf7 {[%emt 0:02:30]} 49. d7 {[%emt 0:00:45]} Rd8 {[%emt 0:00:42]} 50. c5 {[%emt 0:00:00]} g3 {[%emt 0:00:04]} 51. c6 {[%emt 0:00:00]} Ke7 {[%emt 0:00:25]} 52. c7 {[%emt 0:00:00]} Rxd7 {[%emt 0:00:03]} 53. Re1+ {[%emt 0:00:05]} 1-0

[Event "Eurasia Open Cup 2019"]
[Site "Ekaterinburg"]
[Date "2019.08.07"]
[Round "7.22"]
[White "Schepetkova, Margarita"]
[Black "Kotlyar, Kirill"]
[Result "1/2-1/2"]
[ECO "D71"]
[WhiteElo "2241"]
[BlackElo "2387"]
[Annotator "NA"]
[PlyCount "82"]
[EventDate "2019.07.31"]
[EventType "swiss"]
[EventCountry "RUS"]
[SourceTitle "playchess.com"]
[Source "ChessBase"]
[SourceQuality "1"]
[TimeControl "5400+30"]

1. d4 {[%emt 0:00:00]} Nf6 {[%emt 0:00:00]} 2. c4 {[%emt 0:00:00]} g6 {[%emt 0:00:00]} 3. g3 {[%emt 0:00:00]} c6 {[%emt 0:01:05]} 4. Bg2 {[%emt 0:00:00]} d5 {[%emt 0:00:00]} 5. Qa4 {[%emt 0:00:00]} Nfd7 {[%emt 0:00:00]} 6. cxd5 {[%emt 0:02:25]} Nb6 {[%emt 0:00:46]} 7. Qb3 {[%emt 0:00:41]} cxd5 {[%emt 0:01:06]} 8. Nc3 {[%emt 0:01:16]} Nc6 {[%emt 0:03:04]} 9. e3 {[%emt 0:03:43]} e6 {[%emt 0:02:44]} 10. Nf3 {[%emt 0:00:52]} Bg7 {[%emt 0:00:45]} 11. O-O {[%emt 0:00:08]} O-O {[%emt 0:00:06]} 12. Bd2 {[%emt 0:06:54]} Nc4 {[%emt 0:14:23]} 13. Rfd1 {[%emt 0:03:30]} Nxd2 {[%emt 0:03:00]} 14. Nxd2 {[%emt 0:00:52]} b6 {[%emt 0:00:15]} 15. Rac1 {[%emt 0:03:17]} Bb7 {[%emt 0:01:11]} 16. Qa4 {[%emt 0:00:20]} Qe7 {[%emt 0:01:29]} 17. Bf1 {[%emt 0:07:49]} Rfc8 {[%emt 0:03:17]} 18. Ba6 {[%emt 0:01:32]} Na5 {[%emt 0:02:31]} 19. Bxb7 {[%emt 0:00:56]} Qxb7 {[%emt 0:00:07]} 20. Ne2 {[%emt 0:05:50]} Bf8 {[%emt 0:04:27]} 21. Nf4 {[%emt 0:02:50]} Bd6 {[%emt 0:00:25]} 22. Nd3 {[%emt 0:01:20]} Qa6 {[%emt 0:06:52]} 23. Rxc8+ {[%emt 0:03:54]} Rxc8 {[%emt 0:00:31]} 24. Nb3 {[%emt 0:07:38]} Qc4 {[%emt 0:02:06]} 25. Qd7 {[%emt 0:02:18]} Qc6 {[%emt 0:00:59]} 26. Qxc6 {[%emt 0:00:09]} Nxc6 {[%emt 0:00:00]} 27. Rc1 {[%emt 0:00:09]} h5 {[%emt 0:02:25]} 28. Nd2 {[%emt 0:02:25]} Rc7 {[%emt 0:00:25]} 29. h3 {[%emt 0:02:25]} Kf8 {[%emt 0:01:55]} 30. Kg2 {[%emt 0:02:19]} Ke7 {[%emt 0:00:00]} 31. g4 {[%emt 0:00:10]} hxg4 {[%emt 0:00:00]} 32. hxg4 {[%emt 0:00:03]} Na5 {[%emt 0:00:45]} 33. Rxc7+ {[%emt 0:01:34]} Bxc7 {[%emt 0:01:03]} 34. b3 {[%emt 0:00:39]} Nc6 {[%emt 0:00:00]} 35. f4 {[%emt 0:02:02]} f6 {[%emt 0:01:39]} 36. Kf3 {[%emt 0:00:38]} Bd6 {[%emt 0:01:06]} 37. Ke2 {[%emt 0:00:34]} Kf7 {[%emt 0:02:40]} 38. Nf3 {[%emt 0:00:14]} a6 {[%emt 0:00:55]} 39. g5 {[%emt 0:02:57]} f5 {[%emt 0:00:15]} 40. Nfe5+ {[%emt 0:04:26]} Nxe5 {[%emt 0:00:29]} 41. Nxe5+ {[%emt 0:00:14]} Bxe5 {[%emt 0:00:00]} 1/2-1/2

[Event "Eurasia Open Cup 2019"]
[Site "Ekaterinburg"]
[Date "2019.08.07"]
[Round "7.23"]
[White "Iljushina, Olga"]
[Black "Postnikov, Daniil"]
[Result "0-1"]
[ECO "D90"]
[WhiteElo "2208"]
[BlackElo "2354"]
[Annotator "NA"]
[PlyCount "102"]
[EventDate "2019.07.31"]
[EventType "swiss"]
[EventCountry "RUS"]
[SourceTitle "playchess.com"]
[Source "ChessBase"]
[SourceQuality "1"]
[TimeControl "5400+30"]

1. d4 {[%emt 0:00:00]} Nf6 {[%emt 0:00:00]} 2. c4 {[%emt 0:00:00]} g6 {[%emt 0:00:00]} 3. Nc3 {[%emt 0:00:00]} d5 {[%emt 0:00:00]} 4. cxd5 {[%emt 0:00:27]} Nxd5 {[%emt 0:00:00]} 5. Bd2 {[%emt 0:00:00]} Bg7 {[%emt 0:00:57]} 6. e4 {[%emt 0:01:17]} Nxc3 {[%emt 0:00:00]} 7. Bxc3 {[%emt 0:00:56]} O-O {[%emt 0:00:16]} 8. Nf3 {[%emt 0:02:07]} c5 {[%emt 0:07:06]} 9. d5 {[%emt 0:05:44]} Bxc3+ {[%emt 0:02:15]} 10. bxc3 {[%emt 0:00:11]} Bg4 {[%emt 0:00:12]} 11. h3 {[%emt 0:03:56]} Bxf3 {[%emt 0:00:26]} 12. Qxf3 {[%emt 0:00:31]} Qd6 {[%emt 0:01:50]} 13. g4 {[%emt 0:05:56]} e6 {[%emt 0:03:10]} 14. Rd1 {[%emt 0:04:25]} Nd7 {[%emt 0:04:39]} 15. Be2 {[%emt 0:06:18]} Qe5 {[%emt 0:02:05]} 16. O-O {[%emt 0:13:19]} Nf6 {[%emt 0:01:05]} 17. Rfe1 {[%emt 0:05:35]} Nxe4 {[%emt 0:02:12]} 18. Bc4 {[%emt 0:11:02]} Ng5 {[%emt 0:03:21]} 19. Qe3 {[%emt 0:00:29]} Qf4 {[%emt 0:01:49]} 20. Qxf4 {[%emt 0:07:56]} Nxh3+ {[%emt 0:00:10]} 21. Kh2 {[%emt 0:00:18]} Nxf4 {[%emt 0:00:07]} 22. Kg3 {[%emt 0:00:14]} Nxd5 {[%emt 0:00:33]} 23. Bxd5 {[%emt 0:00:04]} exd5 {[%emt 0:00:05]} 24. Rxd5 {[%emt 0:00:02]} b6 {[%emt 0:01:04]} 25. Re7 {[%emt 0:00:37]} Rfd8 {[%emt 0:01:56]} 26. Rdd7 {[%emt 0:05:00]} Rxd7 {[%emt 0:00:00]} 27. Rxd7 {[%emt 0:00:31]} b5 {[%emt 0:03:15]} 28. Rb7 {[%emt 0:03:53]} a6 {[%emt 0:00:00]} 29. Rc7 {[%emt 0:02:00]} c4 {[%emt 0:00:01]} 30. Rc6 {[%emt 0:00:36]} Rd8 {[%emt 0:03:14]} 31. Rxa6 {[%emt 0:02:34]} Rd3+ {[%emt 0:00:35]} 32. f3 {[%emt 0:01:54]} Rxc3 {[%emt 0:00:00]} 33. Rb6 {[%emt 0:00:58]} Rc2 {[%emt 0:00:07]} 34. Rxb5 {[%emt 0:01:19]} Rxa2 {[%emt 0:00:06]} 35. Rc5 {[%emt 0:00:05]} Rc2 {[%emt 0:00:06]} 36. g5 {[%emt 0:00:41]} Kg7 {[%emt 0:00:07]} 37. Rc7 {[%emt 0:00:52]} Rc1 {[%emt 0:00:54]} 38. f4 {[%emt 0:03:03]} c3 {[%emt 0:00:06]} 39. Kg2 {[%emt 0:01:20]} c2 {[%emt 0:00:06]} 40. Rc8 {[%emt 0:02:36]} h5 {[%emt 0:00:35]} 41. Kh2 {[%emt 0:01:04]} h4 {[%emt 0:02:11]} 42. Kg2 {[%emt 0:00:22]} h3+ {[%emt 0:00:10]} 43. Kh2 {[%emt 0:01:02]} f5 {[%emt 0:01:19]} 44. gxf6+ {[%emt 0:01:54]} Kxf6 {[%emt 0:00:06]} 45. Rc5 {[%emt 0:00:37]} Ke6 {[%emt 0:00:14]} 46. Rc8 {[%emt 0:01:44]} Kf5 {[%emt 0:00:42]} 47. Rf8+ {[%emt 0:02:39]} Kg4 {[%emt 0:00:00]} 48. Rc8 {[%emt 0:00:40]} Kxf4 {[%emt 0:00:00]} 49. Rf8+ {[%emt 0:00:20]} Ke5 {[%emt 0:00:00]} 50. Re8+ {[%emt 0:00:13]} Kd6 {[%emt 0:00:01]} 51. Rc8 {[%emt 0:00:11]} g5 {[%emt 0:00:33]} 0-1

[Event "Eurasia Open Cup 2019"]
[Site "Ekaterinburg"]
[Date "2019.08.07"]
[Round "7.24"]
[White "Dilmukhametov, Artur"]
[Black "Gabdrakhmanov, Azat"]
[Result "0-1"]
[ECO "B51"]
[WhiteElo "2346"]
[BlackElo "2111"]
[Annotator "NA"]
[PlyCount "72"]
[EventDate "2019.07.31"]
[EventType "swiss"]
[EventCountry "RUS"]
[SourceTitle "playchess.com"]
[Source "ChessBase"]
[SourceQuality "1"]
[TimeControl "5400+30"]

1. e4 {[%emt 0:00:00]} c5 {[%emt 0:00:00]} 2. Nf3 {[%emt 0:00:28]} d6 {[%emt 0:00:00]} 3. Bb5+ {[%emt 0:00:23]} Nd7 {[%emt 0:00:00]} 4. c3 {[%emt 0:01:05]} Ngf6 {[%emt 0:00:02]} 5. Qe2 {[%emt 0:00:00]} a6 {[%emt 0:00:26]} 6. Ba4 {[%emt 0:00:00]} e5 {[%emt 0:01:19]} 7. O-O {[%emt 0:01:54]} Be7 {[%emt 0:00:22]} 8. d4 {[%emt 0:00:51]} O-O {[%emt 0:00:43]} 9. Nbd2 {[%emt 0:02:49]} cxd4 {[%emt 0:01:17]} 10. cxd4 {[%emt 0:00:58]} b5 {[%emt 0:02:24]} 11. Bc2 {[%emt 0:03:23]} Bb7 {[%emt 0:00:34]} 12. Re1 {[%emt 0:01:04]} Re8 {[%emt 0:01:46]} 13. Nf1 {[%emt 0:06:08]} exd4 {[%emt 0:01:07]} 14. Nxd4 {[%emt 0:05:28]} Bf8 {[%emt 0:00:30]} 15. Bg5 {[%emt 0:11:47]} Qb6 {[%emt 0:03:33]} 16. Be3 {[%emt 0:01:49]} Bxe4 {[%emt 0:03:05]} 17. Ne6 {[%emt 0:04:47]} Qb7 {[%emt 0:01:26]} 18. Bxe4 {[%emt 0:05:06]} Nxe4 {[%emt 0:00:29]} 19. Nxf8 {[%emt 0:00:12]} Nxf8 {[%emt 0:00:15]} 20. Red1 {[%emt 0:04:20]} d5 {[%emt 0:01:11]} 21. Qd3 {[%emt 0:01:45]} Rad8 {[%emt 0:00:27]} 22. f3 {[%emt 0:00:21]} Nf6 {[%emt 0:01:52]} 23. Bd4 {[%emt 0:00:15]} Nh5 {[%emt 0:04:01]} 24. g3 {[%emt 0:04:02]} Ne6 {[%emt 0:01:42]} 25. Ne3 {[%emt 0:00:23]} Nxd4 {[%emt 0:01:36]} 26. Qxd4 {[%emt 0:00:09]} Nf6 {[%emt 0:00:42]} 27. Rd2 {[%emt 0:01:26]} Re6 {[%emt 0:00:40]} 28. Rad1 {[%emt 0:00:44]} g6 {[%emt 0:00:34]} 29. Kf2 {[%emt 0:00:06]} Qe7 {[%emt 0:02:12]} 30. Ng2 {[%emt 0:05:39]} Re8 {[%emt 0:01:39]} 31. Nf4 {[%emt 0:00:23]} Re5 {[%emt 0:00:11]} 32. Qd3 {[%emt 0:00:59]} Re3 {[%emt 0:04:26]} 33. Nxd5 {[%emt 0:07:36]} Nxd5 {[%emt 0:00:07]} 34. Qxd5 {[%emt 0:00:00]} Re2+ {[%emt 0:00:32]} 35. Kf1 {[%emt 0:01:17]} Qe3 {[%emt 0:01:17]} 36. f4 {[%emt 0:11:17]} Qf2# {[%emt 0:00:18]} 0-1

[Event "Eurasia Open Cup 2019"]
[Site "Ekaterinburg"]
[Date "2019.08.07"]
[Round "7.25"]
[White "Tyurin, Ilya"]
[Black "Ovchinnikov, Vsevolod"]
[Result "1/2-1/2"]
[ECO "C04"]
[WhiteElo "2168"]
[BlackElo "2346"]
[Annotator "NA"]
[PlyCount "82"]
[EventDate "2019.07.31"]
[EventType "swiss"]
[EventCountry "RUS"]
[SourceTitle "playchess.com"]
[Source "ChessBase"]
[SourceQuality "1"]
[TimeControl "5400+30"]

1. e4 {[%emt 0:00:00]} e6 {[%emt 0:00:00]} 2. d4 {[%emt 0:00:00]} d5 {[%emt 0:00:00]} 3. Nd2 {[%emt 0:00:00]} Nc6 {[%emt 0:03:35]} 4. Ngf3 {[%emt 0:00:00]} Nf6 {[%emt 0:00:00]} 5. e5 {[%emt 0:00:00]} Nd7 {[%emt 0:00:11]} 6. Be2 {[%emt 0:00:04]} f6 {[%emt 0:00:00]} 7. exf6 {[%emt 0:00:00]} Qxf6 {[%emt 0:00:00]} 8. Nf1 {[%emt 0:00:00]} b6 {[%emt 0:13:33]} 9. Ng3 {[%emt 0:03:58]} g6 {[%emt 0:04:24]} 10. O-O {[%emt 0:02:55]} h6 {[%emt 0:07:51]} 11. c4 {[%emt 0:03:07]} Bb7 {[%emt 0:02:40]} 12. cxd5 {[%emt 0:16:17]} exd5 {[%emt 0:00:02]} 13. a3 {[%emt 0:01:59]} Bg7 {[%emt 0:10:08]} 14. Qc2 {[%emt 0:03:53]} O-O {[%emt 0:16:09]} 15. b4 {[%emt 0:14:50]} Nxd4 {[%emt 0:14:03]} 16. Nxd4 {[%emt 0:00:47]} Qxd4 {[%emt 0:02:21]} 17. Be3 {[%emt 0:07:20]} Qe5 {[%emt 0:04:36]} 18. Qxg6 {[%emt 0:01:10]} Qe8 {[%emt 0:02:27]} 19. Qc2 {[%emt 0:06:44]} c5 {[%emt 0:05:14]} 20. Rae1 {[%emt 0:13:27]} Qf7 {[%emt 0:02:56]} 21. Qd2 {[%emt 0:11:52]} Qf6 {[%emt 0:04:04]} 22. Nh5 {[%emt 0:00:07]} Qc6 {[%emt 0:01:53]} 23. b5 {[%emt 0:02:40]} Qg6 {[%emt 0:04:16]} 24. Nf4 {[%emt 0:02:37]} Qd6 {[%emt 0:00:00]} 25. Bf3 {[%emt 0:00:50]} Nf6 {[%emt 0:00:16]} 26. Ng6 {[%emt 0:00:48]} Ng4 {[%emt 0:01:08]} 27. Bxd5+ {[%emt 0:01:07]} Bxd5 {[%emt 0:00:03]} 28. Qxd5+ {[%emt 0:00:01]} Qxd5 {[%emt 0:00:00]} 29. Ne7+ {[%emt 0:00:00]} Kh7 {[%emt 0:01:08]} 30. Nxd5 {[%emt 0:00:02]} Rad8 {[%emt 0:00:09]} 31. Rd1 {[%emt 0:01:35]} Rf5 {[%emt 0:01:15]} 32. Ne7 {[%emt 0:05:44]} Rxd1 {[%emt 0:00:01]} 33. Rxd1 {[%emt 0:00:01]} Rf7 {[%emt 0:00:13]} 34. Nd5 {[%emt 0:01:34]} Bb2 {[%emt 0:01:15]} 35. a4 {[%emt 0:00:50]} Be5 {[%emt 0:00:34]} 36. g3 {[%emt 0:00:52]} Kg7 {[%emt 0:00:28]} 37. Kg2 {[%emt 0:00:00]} Bb8 {[%emt 0:00:31]} 38. Bf4 {[%emt 0:00:08]} Bxf4 {[%emt 0:00:18]} 39. Nxf4 {[%emt 0:00:01]} Re7 {[%emt 0:01:08]} 40. Rd6 {[%emt 0:00:19]} Ne5 {[%emt 0:00:04]} 41. Nd5 {[%emt 0:00:54]} Rf7 {[%emt 0:00:51]} 1/2-1/2

[Event "Eurasia Open Cup 2019"]
[Site "Ekaterinburg"]
[Date "2019.08.07"]
[Round "7.26"]
[White "Odegov, Artem"]
[Black "Sivuk, Vitaly"]
[Result "0-1"]
[ECO "E20"]
[WhiteElo "2261"]
[BlackElo "2546"]
[Annotator "ChessBase"]
[PlyCount "144"]
[EventDate "2019.07.31"]
[EventType "swiss"]
[EventCountry "RUS"]
[SourceTitle "playchess.com"]
[Source "ChessBase"]
[SourceQuality "1"]
[TimeControl "5400+30"]

1. d4 {[%emt 0:11:19]} Nf6 {[%emt 0:00:00]} 2. c4 {[%emt 0:00:22]} e6 {[%emt 0:00:00]} 3. Nc3 {[%emt 0:00:07]} Bb4 {[%emt 0:00:00]} 4. g3 {[%emt 0:00:11]} d5 {[%emt 0:00:00]} 5. Bg2 {[%emt 0:00:04]} O-O {[%emt 0:00:07]} 6. Nf3 {[%emt 0:00:15]} dxc4 {[%emt 0:00:20]} 7. O-O {[%emt 0:00:37]} Nc6 {[%emt 0:00:07]} 8. Qa4 {[%emt 0:00:00]} Nd5 {[%emt 0:00:14]} 9. Qc2 {[%emt 0:00:00]} Be7 {[%emt 0:00:12]} 10. Rd1 {[%emt 0:00:00]} Rb8 {[%emt 0:00:12]} 11. e4 {[%emt 0:00:37]} Ndb4 {[%emt 0:00:07]} 12. Qe2 {[%emt 0:00:32]} Nd3 {[%emt 0:00:08]} 13. Be3 {[%emt 0:00:21]} b5 {[%emt 0:00:11]} 14. b3 {[%emt 0:02:47]} Ba6 {[%emt 0:00:11]} 15. d5 {[%emt 0:04:33]} exd5 {[%emt 0:00:36]} 16. Nxd5 {[%emt 0:02:17]} Bd6 {[%emt 0:00:31]} 17. Ne1 {[%emt 0:15:37]} Nxe1 {[%emt 0:15:32]} 18. Qxe1 {[%emt 0:01:00]} Qe8 {[%emt 0:01:42]} 19. f4 {[%emt 0:05:18]} f6 {[%emt 0:00:42]} 20. Qf2 {[%emt 0:01:10]} Rf7 {[%emt 0:01:20]} 21. Re1 {[%emt 0:10:32]} Kh8 {[%emt 0:04:13]} 22. Kh1 {[%emt 0:05:22]} cxb3 {[%emt 0:03:28]} 23. axb3 {[%emt 0:00:09]} Bb7 {[%emt 0:00:40]} 24. Bxa7 {[%emt 0:04:47]} Nxa7 {[%emt 0:00:00]} 25. Rxa7 {[%emt 0:00:33]} c6 {[%emt 0:02:41]} 26. Ne3 {[%emt 0:01:35]} Bc5 {[%emt 0:00:33]} 27. Raa1 {[%emt 0:01:53]} Bd4 {[%emt 0:02:53]} 28. Rad1 {[%emt 0:01:27]} Rd8 {[%emt 0:07:06]} 29. Qc2 {[%emt 0:01:50]} g6 {[%emt 0:01:52]} 30. Qc1 {[%emt 0:07:47]} Kg7 {[%emt 0:04:52]} 31. Rd3 {[%emt 0:06:37]} Re7 {[%emt 0:03:37]} 32. Rdd1 {[%emt 0:05:37]} Red7 {[%emt 0:08:29]} 33. h3 {[%emt 0:02:17]} c5 {[%emt 0:06:49]} 34. Nd5 {[%emt 0:00:30]} Bf2 {[%emt 0:01:08]} 35. Rf1 {[%emt 0:00:06]} Bxg3 {[%emt 0:01:45]} 36. Qxc5 {[%emt 0:00:39]} Qe6 {[%emt 0:02:52]} 37. Nc7 {[%emt 0:04:06]} Qf7 {[%emt 0:00:21]} 38. Rxd7 {[%emt 0:00:27]} Qxd7 {[%emt 0:01:43]} 39. Nd5 {[%emt 0:00:06]} Bh4 {[%emt 0:01:44]} 40. Rc1 {[%emt 0:01:14]} Rc8 {[%emt 0:03:20]} 41. Qc7 {[%emt 0:00:42]} Rxc7 {[%emt 0:02:22]} 42. Rxc7 {[%emt 0:00:00]} Qf7 {[%emt 0:00:53]} 43. Rxf7+ {[%emt 0:00:07]} Kxf7 {[%emt 0:00:02]} 44. Nc7 {[%emt 0:01:31]} b4 {[%emt 0:01:55]} 45. Nd5 {[%emt 0:00:08]} Bg3 {[%emt 0:04:17]} 46. e5 {[%emt 0:05:04]} f5 {[%emt 0:03:30]} 47. e6+ {[%emt 0:00:14]} Kxe6 {[%emt 0:00:24]} 48. Nc7+ {[%emt 0:00:00]} Kd7 {[%emt 0:00:07]} 49. Bxb7 {[%emt 0:00:34]} Kxc7 {[%emt 0:00:06]} 50. Bd5 {[%emt 0:00:24]} Kd6 {[%emt 0:00:07]} 51. Bg8 {[%emt 0:01:04]} Ke7 {[%emt 0:00:00]} 52. Kg2 {[%emt 0:00:00]} Bxf4 {[%emt 0:00:19]} 53. Kf3 {[%emt 0:00:28]} Bg5 {[%emt 0:00:59]} 54. Bc4 {[%emt 0:00:51]} Kf6 {[%emt 0:00:01]} 55. Bb5 {[%emt 0:00:23]} Bh4 {[%emt 0:00:22]} 56. Bd7 {[%emt 0:01:01]} Ke7 {[%emt 0:01:29]} 57. Bb5 {[%emt 0:00:14]} Be1 {[%emt 0:01:27]} 58. Ke2 {[%emt 0:00:38]} Bc3 {[%emt 0:00:08]} 59. Kf3 {[%emt 0:00:00]} Be5 {[%emt 0:00:16]} 60. Kg2 {[%emt 0:01:00]} Bd6 {[%emt 0:00:37]} 61. Kf3 {[%emt 0:00:16]} g5 {[%emt 0:01:15]} 62. Kg2 {[%emt 0:00:23]} h5 {[%emt 0:00:21]} 63. Be2 {[%emt 0:00:39]} g4 {[%emt 0:00:00]} 64. Bd1 {[%emt 0:00:34]} Kf6 {[%emt 0:00:16]} 65. Bc2 {[%emt 0:00:09]} Kg5 {[%emt 0:00:18]} 66. Bd3 {[%emt 0:00:45]} f4 {[%emt 0:00:18]} 67. Kh1 {[%emt 0:00:54]} f3 {[%emt 0:00:12]} 68. Be4 {[%emt 0:00:17]} Kf4 {[%emt 0:00:12]} 69. Bc6 {[%emt 0:00:04]} g3 {[%emt 0:00:26]} 70. h4 {[%emt 0:00:04]} g2+ {[%emt 0:00:14]} 71. Kh2 {[%emt 0:00:00]} Kg4+ {[%emt 0:00:08]} 72. Kg1 {[%emt 0:00:00]} Bc5+ {[%emt 0:00:13]} 0-1